bitfinex/quotes_ETHUSD_20251218
["timestamp","ask_amount","ask_price","bid_price","bid_amount"]
[1766028676769,6.72901063,2831.8,2829.9,0.002]
[1766028676770,0.46438023,2830.9,2829.9,0.01764867]
[1766028676946,0.973504,2830.8,2829.9,0.002]
[1766028677146,0.46438023,2830.5,2829.9,0.002]
[1766028677372,0.405504,2830.3,2829.5,0.002]
[1766028678152,3.5333192,2830.2,2829.5,0.002]
[1766028678352,7.0666384,2830.2,2829.5,0.002]
[1766028678565,0.568,2830.1,2829.5,0.002]
[1766028679889,0.568,2830.0,2829.6,1.407]
[1766028680187,0.46438023,2830.6,2829.8,1.407]
[1766028680389,0.568,2830.5,2829.8,1.407]
[1766028680691,0.568,2830.5,2829.5,0.002]
[1766028680986,0.568,2830.5,2829.8,1.407]
[1766028681166,0.568,2830.4,2829.8,1.407]
[1766028681566,3.53232072,2831.1,2830.0,1.0147]
[1766028681790,0.568,2831.0,2830.1,1.407]
[1766028681972,0.568,2831.0,2830.3,0.02117597]
[1766028682293,3.53257029,2830.8,2830.3,0.02117597]
[1766028682667,3.93799866,2830.9,2830.3,0.02117597]
[1766028682895,4.40237889,2830.9,2830.1,1.407]
[1766028683084,4.40237889,2830.9,2830.2,0.02117597]
[1766028683262,0.85027323,2830.8,2830.2,0.02117597]
[1766028683596,7.06264566,2831.8,2830.6,1.42817597]
[1766028683802,1.03238023,2831.7,2830.7,0.02117597]
[1766028683991,0.405504,2831.6,2830.7,0.02117597]
[1766028684172,0.405504,2831.4,2830.9,0.02117597]
[1766028684369,0.46438023,2831.3,2830.7,1.42817597]
[1766028684702,0.568,2831.2,2830.8,1.42817597]
[1766028684904,0.568,2831.2,2830.8,0.02117597]
[1766028685204,0.568,2831.1,2830.9,1.407]
[1766028685682,0.568,2831.0,2830.5,0.02117597]
[1766028685885,0.568,2830.9,2830.3,1.42817597]
[1766028686087,0.568,2830.8,2830.1,0.02117597]
[1766028686492,0.568,2830.8,2830.1,1.42817597]
[1766028686706,0.568,2830.8,2830.3,1.42817597]
[1766028686912,0.568,2830.7,2830.4,0.02117597]
[1766028687084,0.568,2830.8,2830.5,1.407]
[1766028687419,0.568,2830.8,2830.3,1.409]
[1766028688307,0.568,2831.0,2830.3,0.002]
[1766028688506,3.53244551,2830.9,2830.4,0.02117597]
[1766028688682,4.10036786,2831.0,2830.4,0.02117597]
[1766028689094,0.568,2831.0,2830.4,1.42817597]
[1766028689301,4.10032339,2831.0,2830.4,1.42817597]
[1766028689503,0.568,2831.0,2830.4,1.42817597]
[1766028689819,0.567,2830.9,2830.4,1.42817597]
[1766028690104,0.567,2830.9,2830.5,1.407]
[1766028690313,0.567,2831.0,2830.4,1.42817597]
[1766028690509,0.567,2831.0,2830.5,1.407]
[1766028690724,0.567,2830.9,2830.3,0.02317597]
[1766028690885,3.99620194,2831.4,2830.7,0.02117597]
[1766028691085,0.972504,2831.3,2830.7,0.02117597]
[1766028691486,0.972504,2831.3,2830.6,1.407]
[1766028692584,0.46438023,2831.1,2830.5,0.02117597]
[1766028692812,1.03138023,2831.1,2830.6,1.407]
[1766028693005,1.03138023,2831.1,2830.5,1.42817597]
[1766028693312,1.03138023,2831.1,2830.7,1.407]
[1766028693504,0.567,2831.1,2830.8,0.3923]
[1766028693713,0.567,2831.1,2830.6,0.02117597]
[1766028693714,0.567,2831.1,2830.9,1.0147]
[1766028693890,0.567,2831.1,2830.9,1.407]
[1766028694085,4.96887975,2831.3,2830.9,1.407]
[1766028694323,0.75280178,2831.4,2830.9,1.407]
[1766028694516,3.53090707,2832.2,2830.9,1.407]
[1766028694517,0.567,2831.3,2830.9,1.407]
[1766028695019,0.567,2831.3,2830.6,1.42817597]
[1766028695527,0.001,2831.1,2830.7,1.407]
[1766028695689,0.46438023,2831.5,2830.8,0.02117597]
[1766028695889,0.567,2831.4,2830.8,1.42817597]
[1766028696312,0.567,2831.4,2831.1,1.0147]
[1766028696624,0.46438023,2831.2,2830.9,0.3923]
[1766028696928,0.46438023,2831.2,2830.9,1.407]
[1766028697441,0.46438023,2831.2,2830.8,0.02117597]
[1766028697999,0.46438023,2831.2,2830.8,1.42817597]
[1766028698790,0.46438023,2831.2,2830.9,1.407]
[1766028700590,3.53173059,2831.5,2830.9,1.407]
[1766028700591,4.56325441,2831.4,2830.9,1.407]
[1766028700815,4.56325441,2831.4,2831.0,0.3923]
[1766028701314,8.9599941,2831.4,2830.8,0.02117597]
[1766028701817,8.9599941,2831.4,2831.0,0.4282]
[1766028701818,4.56325441,2831.4,2831.0,0.4282]
[1766028702019,4.56325441,2831.4,2831.1,1.5878]
[1766028702208,0.566,2831.5,2830.9,1.1596]
[1766028702409,0.566,2831.7,2831.2,1.60897597]
[1766028702610,0.566,2831.7,2831.3,1.5878]
[1766028702811,0.46438023,2831.6,2831.3,1.5878]
[1766028703215,3.53107344,2832.0,2831.3,1.5878]
[1766028703412,0.566,2831.8,2831.3,1.5878]
[1766028703608,0.566,2831.8,2831.3,1.1596]
[1766028703797,0.566,2831.8,2831.5,1.5878]
[1766028704002,0.46438023,2831.9,2831.5,1.5878]
[1766028704199,3.99535591,2832.1,2831.3,1.1596]
[1766028704404,0.566,2832.0,2831.7,1.5878]
[1766028704621,3.99535591,2832.1,2831.7,1.5878]
[1766028704826,1.03038023,2832.1,2831.7,1.5878]
[1766028705006,4.56135721,2832.1,2831.7,1.5878]
[1766028705203,1.03038023,2832.1,2831.7,1.5878]
[1766028705409,0.566,2832.1,2831.4,3.5529947]
[1766028705732,0.405504,2831.3,2830.5,0.4282]
[1766028705894,0.566,2831.2,2830.4,1.1596]
[1766028706092,0.566,2831.2,2831.0,1.1596]
[1766028706317,0.566,2831.2,2831.0,1.5878]
[1766028706696,0.566,2831.2,2830.4,3.53306748]
[1766028707011,0.566,2831.2,2830.9,1.5878]
[1766028707215,3.99624338,2831.4,2830.9,1.5878]
[1766028707414,4.56224338,2831.4,2830.9,1.5878]
[1766028709321,0.46438023,2832.0,2830.9,1.5878]
[1766028709618,0.405504,2831.7,2831.0,1.60897597]
[1766028710524,0.46438023,2831.5,2831.1,1.5878]
[1766028710903,3.53145571,2831.7,2831.1,1.5878]
[1766028711100,3.53145571,2831.7,2831.0,0.02117597]
[1766028711101,0.566,2831.6,2831.0,1.60897597]
[1766028712242,0.566,2831.6,2831.1,1.1596]
[1766028712420,0.566,2831.6,2831.3,1.5878]
[1766028713328,1.03038023,2831.7,2831.3,1.5878]
[1766028713631,0.001,2831.4,2831.3,1.5878]
[1766028713836,0.001,2831.4,2830.6,0.58717597]
[1766028713837,3.721,2830.7,2828.6,0.002]
[1766028714007,6.43565478,2829.6,2828.6,0.4302]
[1766028714206,0.975504,2829.5,2828.6,0.4302]
[1766028714528,0.86988423,2829.2,2828.5,1.1616]
[1766028714718,0.405504,2829.0,2828.3,0.002]
[1766028715434,0.46438023,2828.8,2828.3,0.002]
[1766028715836,0.405504,2828.3,2827.1,0.4282]
[1766028716037,0.571,2828.2,2826.8,3.53755407]
[1766028716331,0.571,2828.2,2827.1,0.4282]
[1766028716531,0.571,2828.2,2827.2,3.5370469]
[1766028716736,0.571,2828.2,2827.3,1.5878]
[1766028716941,0.571,2828.2,2827.1,1.1596]
[1766028717242,3.53519284,2828.7,2827.0,1.1596]
[1766028717452,0.571,2828.6,2827.5,0.4282]
[1766028717616,0.571,2828.6,2828.0,1.1596]
[1766028717807,0.46438023,2828.9,2827.5,1.1596]
[1766028718007,0.46438023,2828.9,2827.9,1.1596]
[1766028718008,0.571,2828.9,2827.9,1.1596]
[1766028718215,0.571,2828.9,2828.2,0.4282]
[1766028718414,0.571,2828.9,2828.5,1.5878]
[1766028718717,0.571,2828.8,2827.7,0.58671482]
[1766028718924,0.571,2828.8,2827.7,0.571]
[1766028719126,0.405504,2829.3,2827.7,0.571]
[1766028719430,0.405504,2829.3,2828.1,1.1596]
[1766028719431,3.53447759,2829.3,2828.1,1.1596]
[1766028719728,0.976504,2829.2,2828.6,1.5878]
[1766028719915,0.571,2829.1,2827.9,0.46438023]
[1766028720121,0.571,2829.1,2828.0,1.5878]
[1766028720320,0.571,2829.1,2827.9,0.46438023]
[1766028720519,0.571,2829.0,2828.1,0.4282]
[1766028720739,0.571,2829.0,2828.6,1.1596]
[1766028721038,3.534088,2829.6,2827.9,0.48009778]
[1766028721039,0.571,2829.2,2828.0,1.5878]
[1766028721236,0.571,2829.2,2828.5,1.60897597]
[1766028721444,1.03538023,2829.2,2828.5,1.60897597]
[1766028721838,0.571,2829.2,2828.6,1.5878]
[1766028722643,0.57,2829.1,2828.6,1.5878]
[1766028722839,0.57,2829.1,2828.4,1.5878]
[1766028723053,0.57,2829.1,2828.3,0.02117597]
[1766028723213,0.57,2829.1,2828.5,1.60897597]
[1766028723850,0.57,2829.1,2828.5,0.02117597]
[1766028724148,0.57,2829.0,2828.5,0.02117597]
[1766028724331,0.57,2829.0,2828.2,1.5878]
[1766028724651,0.57,2829.0,2828.2,5.12354567]
[1766028724847,0.57,2829.0,2828.3,1.1596]
[1766028725046,0.405504,2829.2,2828.4,0.4282]
[1766028725248,0.57,2829.1,2828.3,0.02117597]
[1766028725453,0.46438023,2829.0,2828.1,1.60897597]
[1766028725619,0.57,2828.9,2828.3,0.02117597]
[1766028726155,0.57,2828.9,2828.3,1.60897597]
[1766028726648,0.46438023,2829.1,2828.3,0.02117597]
[1766028726826,0.57,2828.8,2828.4,1.5878]
[1766028727028,0.46438023,2829.1,2828.4,0.4282]
[1766028727228,0.57,2829.0,2828.4,1.5878]
[1766028727434,0.46438023,2829.0,2828.1,0.02117597]
[1766028727644,0.57,2828.9,2828.2,1.5878]
[1766028728162,0.57,2829.0,2828.3,0.02117597]
[1766028728536,0.57,2829.0,2828.6,1.5878]
[1766028728739,0.57,2828.9,2828.6,1.5878]
[1766028729424,3.99901339,2829.2,2828.6,1.5878]
[1766028729731,3.53361349,2830.0,2828.9,0.02117597]
[1766028730039,0.46438023,2829.8,2828.9,1.60897597]
[1766028730432,0.405504,2829.8,2828.9,1.60897597]
[1766028730752,0.86988423,2829.8,2828.9,1.60897597]
[1766028731062,0.88606365,2829.7,2828.9,1.60897597]
[1766028731425,0.88606365,2829.7,2829.0,0.02117597]
[1766028731764,3.53354533,2830.1,2829.4,0.4882]
[1766028731922,3.53354533,2830.1,2829.4,1.7167]
[1766028731923,1.03438023,2830.0,2829.4,1.7167]
[1766028732133,1.03438023,2830.0,2829.3,1.698]
[1766028732329,0.46438023,2830.0,2829.2,0.02117597]
[1766028732575,0.46438023,2830.0,2829.3,1.1853]
[1766028732860,0.57,2829.9,2829.4,1.698]
[1766028734253,1.03438023,2829.9,2829.4,1.698]
[1766028734456,0.57,2829.8,2829.5,0.02117597]
[1766028734659,0.57,2830.2,2829.5,1.71917597]
[1766028734975,0.57,2830.1,2829.5,1.71917597]
[1766028735124,0.57,2830.1,2829.7,1.1853]
[1766028735324,0.57,2830.1,2829.7,1.698]
[1766028735525,3.93857353,2830.4,2829.7,1.698]
[1766028735760,0.57,2830.3,2829.7,1.698]
[1766028736156,0.405504,2830.4,2829.7,1.71917597]
[1766028736363,0.57,2830.3,2829.7,0.02117597]
[1766028736573,0.57,2830.3,2828.3,3.53564465]
[1766028736574,0.405504,2829.7,2828.3,3.53564465]
[1766028736872,6.43565478,2829.4,2828.4,1.698]
[1766028737080,0.46438023,2829.3,2828.2,3.53572634]
[1766028737236,0.57,2829.2,2828.4,1.698]
[1766028737435,0.57,2829.2,2828.5,0.5127]
[1766028737772,0.57,2829.2,2828.5,1.698]
[1766028738068,0.46438023,2829.1,2828.6,1.71917597]
[1766028738271,4.72941163,2829.3,2828.6,1.71917597]
[1766028738442,0.57,2829.2,2828.6,1.71917597]
[1766028738644,3.99883231,2829.3,2828.3,3.53568563]
[1766028738849,0.57,2829.2,2828.6,1.698]
[1766028739058,0.46438023,2829.3,2828.7,1.71917597]
[1766028739375,0.57,2829.2,2828.7,1.698]
[1766028739580,0.57,2829.5,2828.9,1.1853]
[1766028739871,0.57,2829.4,2829.1,1.71917597]
[1766028740081,0.46438023,2829.8,2829.2,1.698]
[1766028740372,0.57,2829.7,2829.4,1.698]
[1766028740745,0.57,2829.6,2829.3,0.02117597]
[1766028741261,0.57,2829.6,2829.3,1.71917597]
[1766028741836,0.57,2829.6,2829.3,0.02117597]
[1766028742868,0.46538023,2830.1,2829.5,0.02117597]
[1766028743078,0.57,2830.0,2829.4,1.698]
[1766028743239,1.03438023,2830.0,2829.6,0.02117597]
[1766028743440,1.49126285,2830.0,2829.6,0.02117597]
[1766028743743,1.02688262,2830.0,2829.6,0.02117597]
[1766028743936,0.45688262,2830.0,2829.6,0.02117597]
[1766028744136,0.569,2830.0,2829.7,1.71917597]
[1766028744739,0.569,2830.0,2829.7,1.698]
[1766028745134,0.001,2830.1,2829.7,1.698]
[1766028745336,0.569,2830.0,2829.7,1.698]
[1766028745576,1.03338023,2830.0,2829.7,1.698]
[1766028745738,1.03338023,2830.0,2829.6,1.698]
[1766028746254,1.03338023,2830.0,2827.2,0.5127]
[1766028746255,3.721,2829.4,2827.2,0.5127]
[1766028746575,0.86988423,2828.3,2827.2,0.5127]
[1766028746770,0.573,2828.2,2827.2,0.5127]
[1766028747149,0.86988423,2828.3,2827.2,0.5127]
[1766028747352,0.405504,2828.1,2827.3,0.02117597]
[1766028747552,0.44970328,2828.1,2827.2,0.5127]
[1766028747775,0.86988423,2827.9,2827.2,0.5127]
[1766028748180,0.46438023,2828.0,2827.2,1.698]
[1766028748378,0.573,2827.9,2827.2,1.698]
[1766028748581,6.90759197,2828.0,2827.2,1.698]
[1766028748760,0.573,2827.8,2827.2,1.698]
[1766028748960,0.405504,2827.9,2827.2,1.698]
[1766028749279,0.573,2827.8,2827.1,1.71917597]
[1766028750080,0.405504,2827.9,2827.3,0.02117597]
[1766028750281,0.573,2827.8,2827.2,0.02117597]
[1766028750486,0.573,2827.9,2827.4,1.71917597]
[1766028750655,0.573,2827.9,2827.5,1.698]
[1766028750854,0.573,2827.9,2827.5,1.1853]
[1766028751056,1.03738023,2828.0,2827.2,0.02117597]
[1766028751363,0.573,2827.9,2827.4,0.02117597]
[1766028751684,4.00048711,2828.0,2827.5,1.698]
[1766028751888,4.57348711,2828.0,2827.5,1.698]
[1766028752087,1.03738023,2828.0,2827.5,1.698]
[1766028752269,0.46438023,2828.0,2827.2,3.55818075]
[1766028752583,4.00046433,2828.0,2827.4,1.71917597]
[1766028753261,1.03738023,2828.1,2827.4,1.71917597]
[1766028753983,4.57337342,2828.1,2827.4,1.71917597]
[1766028754287,0.46438023,2828.1,2827.4,1.71917597]
[1766028754484,7.53629297,2828.1,2827.5,1.698]
[1766028755219,0.46438023,2828.1,2827.1,3.55831885]
[1766028755501,7.53646909,2828.1,2827.4,1.698]
[1766028756556,7.53646909,2828.1,2827.3,0.02117597]
[1766028756858,0.405504,2828.0,2827.2,0.02117597]
[1766028757058,1.19970131,2828.0,2827.2,0.02117597]
[1766028757603,1.19970131,2828.0,2827.1,1.698]
[1766028758184,7.07238586,2827.9,2827.1,1.698]
[1766028758391,13.5155976,2827.9,2827.1,1.698]
[1766028758687,0.86988423,2827.8,2827.0,0.002]
[1766028758871,1.43854818,2827.7,2827.0,0.002]
[1766028760560,7.07313622,2827.6,2827.0,0.002]
[1766028760760,0.46438023,2827.6,2827.0,0.002]
[1766028760966,0.405504,2827.9,2827.1,1.71917597]
[1766028761178,0.46438023,2827.8,2827.1,1.71917597]
[1766028761388,0.46438023,2827.8,2827.1,1.698]
[1766028761582,0.79424632,2827.7,2827.1,1.698]
[1766028761788,0.79424632,2827.7,2827.0,0.002]
[1766028762906,0.46438023,2827.6,2827.0,0.002]
[1766028764166,0.47154852,2828.5,2827.1,0.02117597]
[1766028764368,0.86988423,2828.2,2827.3,0.02117597]
[1766028764574,0.86988423,2828.2,2827.3,1.8049]
[1766028764785,0.405504,2828.2,2827.1,0.02117597]
[1766028764998,0.86988423,2828.0,2827.4,1.295]
[1766028765276,0.86988423,2828.0,2827.4,1.8049]
[1766028765498,0.405504,2828.0,2827.4,1.8049]
[1766028765796,0.86988423,2828.0,2827.4,1.8049]
[1766028766377,1.66406122,2828.0,2827.4,1.8049]
[1766028767194,0.46438023,2827.9,2827.4,1.8049]
[1766028767408,5.20018991,2828.0,2827.4,1.8049]
[1766028768021,1.66406122,2828.0,2827.4,1.8049]
[1766028768322,4.33029858,2828.0,2827.5,0.5099]
[1766028768480,0.46438023,2827.9,2827.6,1.8049]
[1766028769276,6.44321174,2827.9,2827.0,0.002]
[1766028769506,0.46438023,2828.1,2827.2,0.5099]
[1766028769803,1.15910559,2828.0,2827.3,1.8049]
[1766028769978,0.405504,2828.0,2827.4,0.5099]
[1766028771290,0.86988423,2828.0,2827.4,1.8049]
[1766028771485,0.405504,2828.0,2827.3,3.5581082]
[1766028771705,0.001,2828.0,2827.5,0.02117597]
[1766028772109,0.001,2828.0,2827.7,1.8049]
[1766028773386,0.001,2828.0,2827.7,1.295]
[1766028773592,0.001,2828.0,2827.6,0.572]
[1766028773775,0.001,2828.0,2827.7,1.8049]
[1766028773981,0.001,2828.0,2827.8,1.8049]
[1766028774410,0.405504,2828.7,2828.0,1.8049]
[1766028774586,0.405504,2828.5,2827.8,0.02117597]
[1766028774914,7.06888628,2829.3,2828.2,1.8049]
[1766028775097,0.46438023,2829.0,2828.1,4.10693663]
[1766028775412,0.46438023,2829.0,2828.4,1.8049]
[1766028775612,0.46438023,2829.0,2828.2,3.53580134]
[1766028776206,0.46438023,2829.0,2828.1,4.10689861]
[1766028776505,0.46438023,2829.0,2828.3,1.8049]
[1766028776689,1.35593854,2829.0,2828.3,1.8249]
[1766028776889,1.35593854,2829.0,2828.4,1.8049]
[1766028778015,0.46438023,2829.0,2828.4,1.8049]
[1766028778204,0.46438023,2829.0,2828.5,0.5099]
[1766028778407,0.46438023,2829.0,2828.6,1.8049]
[1766028778794,1.84619712,2829.2,2828.6,1.8049]
[1766028779113,3.53472541,2829.1,2828.5,0.571]
[1766028779320,3.53472541,2829.1,2828.7,0.5099]
[1766028780041,3.53472541,2829.1,2828.5,1.866]
[1766028780320,7.06945082,2829.1,2828.5,1.866]
[1766028780523,7.96101561,2829.1,2828.3,0.02]
[1766028780824,0.001,2829.0,2828.3,0.02]
[1766028783021,0.45068922,2829.0,2828.3,0.02]
[1766028783224,0.61833009,2828.9,2827.8,1.82607597]
[1766028783422,1.11540007,2828.9,2827.8,0.02117597]
[1766028783620,0.49706998,2828.9,2828.0,1.8049]
[1766028783830,0.61833009,2828.8,2828.0,1.8049]
[1766028784406,4.15350569,2828.8,2828.0,1.8049]
[1766028784632,4.15343538,2828.8,2828.0,1.8049]
[1766028784839,1.12403103,2828.8,2828.0,1.8049]
[1766028785333,0.61766342,2828.7,2828.1,1.8049]
[1766028785535,0.50570094,2828.8,2828.1,1.8049]
[1766028785536,3.53507557,2828.8,2828.1,1.8049]
[1766028785719,3.53507557,2828.8,2827.9,3.53617645]
[1766028785720,0.46438023,2828.9,2828.0,3.55722404]
[1766028785925,0.9049532,2828.9,2828.2,1.8049]
[1766028786134,0.9049532,2828.9,2828.0,0.02117597]
[1766028786519,0.46438023,2828.7,2828.0,0.02117597]
[1766028786920,0.46438023,2828.8,2828.1,1.8049]
[1766028787426,3.535845,2829.0,2828.1,1.295]
[1766028787605,0.40002252,2828.9,2828.2,1.8049]
[1766028788615,0.46438023,2828.7,2828.2,1.8049]
[1766028791042,0.46438023,2828.6,2828.2,1.8049]
[1766028791416,0.46438023,2828.6,2827.9,1.9875]
[1766028791647,0.46438023,2828.6,2827.8,3.55746108]
[1766028791844,0.46438023,2828.6,2827.9,1.9875]
[1766028792746,0.46438023,2828.8,2827.8,0.02117597]
[1766028792915,0.001,2828.9,2828.4,0.02117597]
[1766028793116,0.001,2829.0,2828.4,0.01571221]
[1766028793315,0.001,2829.0,2828.6,1.5062]
[1766028793612,7.06813682,2829.6,2828.9,2.0363]
[1766028793841,1.17129391,2829.5,2828.9,2.0363]
[1766028794713,0.46538023,2829.7,2828.8,0.59117597]
[1766028795025,3.53495964,2829.7,2829.3,2.0363]
[1766028795232,0.001,2829.7,2829.3,2.0363]
[1766028795617,0.001,2829.7,2829.0,0.02117597]
[1766028795813,3.53495332,2829.7,2829.1,2.0363]
[1766028796018,3.53495332,2829.7,2828.8,2.62747597]
[1766028796019,7.8679013,2829.7,2828.8,2.62747597]
[1766028796239,4.33394798,2829.7,2828.9,2.0363]
[1766028796747,1.26437489,2829.7,2829.0,2.0363]
[1766028796918,0.46538023,2829.7,2829.0,2.0363]
[1766028797244,0.001,2829.7,2829.1,1.5062]
[1766028797449,0.46538023,2829.7,2829.1,1.5062]
[1766028797849,0.001,2829.7,2829.1,1.5062]
[1766028798150,0.46538023,2829.7,2829.1,1.5062]
[1766028798314,3.53496086,2829.7,2829.1,1.5062]
[1766028798840,0.46538023,2829.7,2829.1,2.0363]
[1766028799251,0.001,2829.7,2829.1,2.0363]
[1766028799451,0.46538023,2829.7,2829.1,2.0363]
[1766028799849,0.001,2829.7,2829.1,2.0363]
[1766028800230,0.001,2829.7,2828.9,3.53491539]
[1766028800430,0.46438023,2829.6,2828.9,1.5062]
[1766028801236,0.001,2829.7,2829.0,1.5062]
[1766028801435,0.46438023,2829.6,2829.0,1.5062]
[1766028801631,0.001,2829.7,2829.0,1.5062]
[1766028802149,0.001,2829.7,2829.1,0.5301]
[1766028802349,0.46538023,2829.7,2829.1,2.0363]
[1766028802672,0.46538023,2829.7,2828.9,3.55611647]
[1766028802945,0.001,2829.7,2828.9,3.55611647]
[1766028803155,0.001,2829.7,2829.3,0.5301]
[1766028803360,0.001,2829.7,2829.5,2.0363]
[1766028804323,0.001,2829.7,2829.4,1.5062]
[1766028804563,0.001,2829.7,2829.1,0.569]
[1766028804724,0.001,2829.7,2829.2,3.53455823]
[1766028804919,0.001,2830.1,2829.3,0.02117597]
[1766028805123,0.001,2830.1,2829.3,7.09002144]
[1766028805325,0.001,2830.1,2829.4,1.5062]
[1766028805642,0.001,2830.1,2829.7,0.5301]
[1766028805952,0.001,2830.1,2829.5,0.5301]
[1766028806255,0.001,2830.1,2829.7,2.0363]
[1766028806840,0.001,2830.1,2829.5,0.5301]
[1766028807041,0.001,2830.1,2829.7,2.0363]
[1766028808264,0.001,2830.1,2829.5,0.02117597]
[1766028808759,0.001,2830.1,2829.5,2.0363]
[1766028809064,0.49806998,2830.1,2829.2,2.0363]
[1766028809360,4.03063888,2830.0,2829.1,4.10367464]
[1766028809664,0.001,2830.1,2829.3,2.0363]
[1766028809665,0.40316389,2829.9,2829.3,2.0363]
[1766028810635,0.40316389,2829.9,2829.1,0.59017597]
[1766028810835,0.40316389,2829.9,2829.2,1.5062]
[1766028811056,0.40316389,2829.9,2829.3,2.0363]
[1766028811464,0.40316389,2829.9,2829.5,1.5062]
[1766028811761,0.40316389,2829.9,2829.5,2.0363]
[1766028811954,0.40316389,2829.9,2829.2,2.0363]
[1766028812361,0.40316389,2829.9,2829.1,4.12474538]
[1766028812750,0.40316389,2829.9,2829.2,2.0363]
[1766028813368,0.40316389,2829.9,2829.1,4.12474538]
[1766028813554,0.40316389,2829.9,2829.2,2.0363]
[1766028813873,3.93686365,2829.9,2829.2,2.0363]
[1766028814235,3.93786365,2829.9,2829.2,2.0363]
[1766028814436,0.40416389,2829.9,2829.2,2.0363]
[1766028814852,0.40416389,2829.9,2829.2,5.57084666]
[1766028815077,0.40416389,2829.9,2829.3,2.0363]
[1766028815872,0.40416389,2829.9,2829.3,5.57073963]
[1766028816043,0.001,2829.9,2829.4,0.5301]
[1766028816237,0.001,2829.9,2829.4,1.5062]
[1766028816437,0.001,2829.9,2829.5,2.0363]
[1766028816675,0.001,2829.9,2829.6,1.5062]
[1766028816834,0.001,2830.1,2829.8,2.0363]
[1766028817039,0.001,2830.1,2829.8,1.5062]
[1766028817259,0.001,2830.1,2829.8,2.0363]
[1766028817772,0.001,2830.1,2829.6,5.04026509]
[1766028817945,0.001,2830.1,2829.7,2.0363]
[1766028818154,0.001,2830.1,2829.9,2.0363]
[1766028818539,5.15864189,2830.8,2829.8,3.55489539]
[1766028818743,0.46438023,2830.7,2829.8,3.55489539]
[1766028819148,0.46438023,2830.7,2830.1,1.5062]
[1766028819375,0.46438023,2830.7,2829.9,1.5062]
[1766028819670,0.46438023,2830.5,2829.9,2.0363]
[1766028820947,0.46438023,2830.5,2829.8,0.02117597]
[1766028821268,0.46438023,2830.6,2830.0,0.02117597]
[1766028821474,5.71894082,2830.6,2830.1,2.0363]
[1766028821788,5.71894082,2830.6,2830.2,0.5301]
[1766028821949,5.71894082,2830.6,2830.2,2.0409]
[1766028822146,0.46438023,2830.6,2830.2,2.0409]
[1766028822358,8.78730488,2830.7,2830.2,2.0409]
[1766028822676,0.46438023,2830.6,2830.2,2.0409]
[1766028823379,0.46538023,2830.6,2830.2,2.0409]
[1766028824580,0.001,2830.6,2830.0,0.02117597]
[1766028824782,0.001,2830.6,2830.3,1.5108]
[1766028825103,0.001,2830.6,2830.3,2.0939]
[1766028825383,1.0888673,2830.6,2830.0,2.11507597]
[1766028825680,0.001,2830.6,2830.2,2.0939]
[1766028825878,0.001,2830.6,2830.1,1.5108]
[1766028826182,0.001,2830.6,2830.3,2.0939]
[1766028826651,1.626,2830.8,2830.3,2.0939]
[1766028826855,1.626,2830.8,2830.2,0.02117597]
[1766028827072,1.626,2830.8,2830.3,2.0939]
[1766028827883,1.626,2830.8,2830.2,3.55449014]
[1766028828079,1.626,2830.8,2830.2,3.55443308]
[1766028828280,1.626,2830.8,2830.4,0.02117597]
[1766028828581,0.001,2830.9,2830.6,2.0939]
[1766028828778,0.46438023,2831.2,2830.3,0.58817597]
[1766028828983,0.001,2831.3,2830.8,1.5108]
[1766028829159,0.001,2831.3,2830.9,2.0939]
[1766028829563,0.46538023,2831.3,2830.9,2.0939]
[1766028830487,3.99735533,2831.3,2830.9,2.0939]
[1766028830781,0.46538023,2831.3,2830.9,2.0939]
[1766028831179,3.99738818,2831.3,2830.9,2.0939]
[1766028831479,3.99738818,2831.3,2830.6,2.0939]
[1766028831681,4.4725516,2831.3,2830.6,2.0939]
[1766028831983,4.4725516,2831.3,2830.3,4.12136713]
[1766028831984,5.25456059,2831.1,2830.3,2.68207597]
[1766028832286,8.78675895,2831.1,2830.3,2.68207597]
[1766028832456,5.25456059,2831.1,2830.4,1.5108]
[1766028832651,5.25456059,2831.1,2830.7,2.0939]
[1766028833164,8.78678623,2831.1,2830.3,0.58817597]
[1766028833368,8.78678623,2831.1,2830.4,2.0939]
[1766028834184,5.25456059,2831.1,2830.4,2.0939]
[1766028834894,5.25456059,2831.1,2830.5,2.0939]
[1766028835183,5.25456059,2831.1,2830.6,1.5108]
[1766028835383,5.25282164,2830.9,2830.7,2.0939]
[1766028835586,5.25282164,2830.9,2830.4,2.0939]
[1766028835884,5.25282164,2830.9,2830.5,0.5831]
[1766028836091,5.25282164,2830.9,2830.5,2.0939]
[1766028837086,5.25282164,2831.1,2830.5,5.64798183]
[1766028837286,5.25282164,2831.1,2830.8,1.5108]
[1766028837598,5.25282164,2831.1,2830.7,2.0939]
[1766028838571,5.25282164,2831.1,2830.5,2.11507597]
[1766028838956,3.533178,2831.2,2830.5,2.11507597]
[1766028839184,5.25282164,2830.9,2830.5,2.11507597]
[1766028840362,3.53221683,2831.1,2830.5,2.11707597]
[1766028840559,5.25282164,2830.7,2830.3,0.567]
[1766028840866,7.06443366,2831.1,2829.8,5.64880486]
[1766028840867,5.25282164,2830.5,2829.8,5.64880486]
[1766028841075,5.25282164,2830.7,2830.1,1.5108]
[1766028841256,5.25282164,2830.7,2830.0,3.55471027]
[1766028841590,5.25282164,2830.5,2830.0,2.11507597]
[1766028841768,0.49723051,2830.5,2829.7,0.02117597]
[1766028841973,5.25282164,2830.2,2829.7,0.5831]
[1766028842174,5.25282164,2830.0,2829.7,0.5831]
[1766028842374,5.25282164,2830.0,2829.6,1.5108]
[1766028842570,5.25282164,2830.2,2829.6,2.0939]
[1766028842976,5.25282164,2830.2,2829.6,0.5831]
[1766028843293,5.25282164,2830.2,2829.9,0.5831]